[Event "European Rapid Championship 2021"]
[Site "Katowice"]
[Date "2021.12.19"]
[Round "11.23"]
[White "Blohberger, Felix"]
[Black "Koziorowicz, Michal"]
[Result "1/2-1/2"]
[ECO "A80"]
[WhiteElo "2409"]
[BlackElo "2041"]
[Annotator "NA"]
[PlyCount "113"]
[EventDate "2021.12.18"]
[EventType "swiss"]
[EventCountry "POL"]
[SourceTitle "playchess.com"]
[Source "ChessBase"]
[SourceQuality "1"]
[TimeControl "900+10"]

1. d4 f5 {[%emt 0:00:03]} 2. Nc3 {[%emt 0:00:12]} Nf6 {[%emt 0:00:06]} 3. Bg5 {
[%emt 0:00:02]} d5 {[%emt 0:00:10]} 4. Bxf6 {[%emt 0:00:04]} exf6 {[%emt 0:00:
01]} 5. e3 {[%emt 0:00:02]} c6 {[%emt 0:00:05]} 6. Bd3 {[%emt 0:00:06]} Bd6 {
[%emt 0:00:03]} 7. Qf3 {[%emt 0:00:50]} g6 {[%emt 0:00:12]} 8. h4 {[%emt 0:00:
36]} h5 {[%emt 0:00:19]} 9. Nh3 {[%emt 0:00:07]} Be6 {[%emt 0:00:41]} 10. Nf4 {
[%emt 0:01:18]} Bf7 {[%emt 0:00:36]} 11. O-O-O {[%emt 0:00:46]} Nd7 {[%emt 0:
00:14]} 12. Qe2 {[%emt 0:01:40]} Qa5 {[%emt 0:00:29]} 13. g4 {[%emt 0:00:54]}
hxg4 {[%emt 0:00:52]} 14. h5 {[%emt 0:00:02]} gxh5 {[%emt 0:00:14]} 15. Bxf5 {
[%emt 0:00:02]} O-O-O {[%emt 0:00:13]} 16. Qd3 {[%emt 0:02:02]} Qc7 {[%emt 0:
01:55]} 17. Be6 {[%emt 0:01:36]} Be8 {[%emt 0:01:26]} 18. Nce2 {[%emt 0:00:03]}
Kb8 {[%emt 0:00:13]} 19. Bxg4 {[%emt 0:00:07]} Qa5 {[%emt 0:01:22]} 20. Kb1 {
[%emt 0:00:01]} Nb6 {[%emt 0:02:03]} 21. Bxh5 {[%emt 0:00:55]} Bd7 {[%emt 0:00:
35]} 22. Bf7 {[%emt 0:00:41]} Nc4 {[%emt 0:02:11]} 23. Ka1 {[%emt 0:01:38]} Qb4
{[%emt 0:01:08]} 24. Qb3 {[%emt 0:00:53]} Rxh1 {[%emt 0:00:06]} 25. Rxh1 {
[%emt 0:00:09]} Qd2 {[%emt 0:00:02]} 26. Qd3 {[%emt 0:00:13]} Qb4 {[%emt 0:00:
01]} 27. Qb3 {[%emt 0:01:06]} Qd2 {[%emt 0:00:02]} 28. Qc3 {[%emt 0:00:35]}
Qxc3 {[%emt 0:00:09]} 29. bxc3 {[%emt 0:00:21]} Bf5 {[%emt 0:00:14]} 30. Bg6 {
[%emt 0:00:20]} Bg4 {[%emt 0:00:17]} 31. Bd3 {[%emt 0:00:08]} Nd2 {[%emt 0:00:
36]} 32. Kb2 {[%emt 0:00:23]} f5 {[%emt 0:00:21]} 33. Kc1 {[%emt 0:00:46]} Ne4
{[%emt 0:00:04]} 34. Rf1 {[%emt 0:00:30]} Ng5 {[%emt 0:00:54]} 35. c4 {[%emt 0:
00:07]} dxc4 {[%emt 0:00:14]} 36. Bxc4 {[%emt 0:00:02]} Rh8 {[%emt 0:00:03]}
37. Bd3 {[%emt 0:00:35]} Rh2 {[%emt 0:00:18]} 38. Kb2 {[%emt 0:01:03]} Nf3 {
[%emt 0:00:49]} 39. Kc3 {[%emt 0:00:15]} a5 {[%emt 0:00:01]} 40. Ng3 {[%emt 0:
00:27]} Bb4+ {[%emt 0:00:34]} 41. Kb2 {[%emt 0:00:00]} Nd2 {[%emt 0:00:02]} 42.
Rg1 {[%emt 0:00:17]} Rxf2 {[%emt 0:00:27]} 43. Rg2 {[%emt 0:00:02]} Rf3 {
[%emt 0:00:56]} 44. a3 {[%emt 0:00:11]} Bd6 {[%emt 0:00:01]} 45. Nxf5 {[%emt 0:
00:18]} Bxf5 {[%emt 0:00:08]} 46. Rxd2 {[%emt 0:00:05]} Bxd3 {[%emt 0:00:24]}
47. Rxd3 {[%emt 0:00:15]} Bxf4 {[%emt 0:00:01]} 48. exf4 {[%emt 0:00:01]} Rxf4
{[%emt 0:00:01]} 49. Kb3 {[%emt 0:00:07]} Kc7 {[%emt 0:00:03]} 50. c3 {[%emt 0:
00:04]} b5 {[%emt 0:00:22]} 51. a4 {[%emt 0:00:07]} Kb6 {[%emt 0:00:02]} 52.
Rh3 {[%emt 0:00:12]} Rf6 {[%emt 0:00:05]} 53. Rh5 {[%emt 0:00:09]} Rd6 {
[%emt 0:00:07]} 54. Rh8 {[%emt 0:00:11]} b4 {[%emt 0:00:41]} 55. cxb4 {[%emt 0:
00:19]} Rxd4 {[%emt 0:00:02]} 56. bxa5+ {[%emt 0:00:02]} Kxa5 {[%emt 0:00:03]}
57. Rh5+ {[%emt 0:00:02]} 1/2-1/2

[Event "European Rapid Championship 2021"]
[Site "Katowice"]
[Date "2021.12.19"]
[Round "11.23"]
[White "Krawczyk, Flawian"]
[Black "Kowalczyk, Rafal"]
[Result "0-1"]
[ECO "E15"]
[WhiteElo "2154"]
[BlackElo "2235"]
[Annotator "NA"]
[PlyCount "76"]
[EventDate "2021.12.18"]
[EventType "swiss"]
[EventCountry "POL"]
[SourceTitle "playchess.com"]
[Source "ChessBase"]
[SourceQuality "1"]
[TimeControl "900+10"]

1. d4 {[%emt 0:00:01]} Nf6 {[%emt 0:00:09]} 2. c4 {[%emt 0:00:01]} e6 {[%emt 0:
00:02]} 3. Nf3 {[%emt 0:00:02]} b6 {[%emt 0:00:00]} 4. g3 {[%emt 0:00:00]} Ba6
{[%emt 0:00:01]} 5. b3 {[%emt 0:00:01]} Bb4+ {[%emt 0:00:02]} 6. Bd2 {[%emt 0:
00:01]} Be7 {[%emt 0:00:01]} 7. Bg2 {[%emt 0:00:05]} O-O {[%emt 0:00:28]} 8.
O-O {[%emt 0:00:03]} c6 {[%emt 0:01:13]} 9. Bc3 {[%emt 0:00:01]} d5 {[%emt 0:
00:02]} 10. Nbd2 {[%emt 0:00:00]} Bb7 {[%emt 0:00:11]} 11. Qc2 {[%emt 0:00:07]}
Nbd7 {[%emt 0:00:19]} 12. Rfd1 {[%emt 0:00:28]} Rc8 {[%emt 0:00:10]} 13. e4 {
[%emt 0:01:00]} dxe4 {[%emt 0:01:32]} 14. Ne5 {[%emt 0:00:19]} e3 {[%emt 0:06:
37]} 15. fxe3 {[%emt 0:00:14]} Nxe5 {[%emt 0:00:01]} 16. dxe5 {[%emt 0:00:01]}
Ng4 {[%emt 0:00:01]} 17. Qe4 {[%emt 0:04:17]} Nxe3 {[%emt 0:00:03]} 18. Re1 {
[%emt 0:00:19]} Nxg2 {[%emt 0:00:09]} 19. Kxg2 {[%emt 0:00:07]} Qc7 {[%emt 0:
00:30]} 20. Nf3 {[%emt 0:00:02]} c5 {[%emt 0:00:02]} 21. Qg4 {[%emt 0:00:01]}
Rfd8 {[%emt 0:00:19]} 22. Re3 {[%emt 0:00:02]} Rd7 {[%emt 0:00:29]} 23. Rae1 {
[%emt 0:00:15]} Rcd8 {[%emt 0:00:12]} 24. Kg1 {[%emt 0:00:01]} Rd1 {[%emt 0:00:
09]} 25. Qf4 {[%emt 0:00:36]} h6 {[%emt 0:00:50]} 26. h4 {[%emt 0:00:06]} Qc6 {
[%emt 0:00:35]} 27. Kf2 {[%emt 0:00:13]} R8d3 {[%emt 0:00:39]} 28. Rxd1 {
[%emt 0:00:44]} Rxd1 {[%emt 0:00:03]} 29. Ke2 {[%emt 0:00:02]} Qd7 {[%emt 0:01:
35]} 30. Nd2 {[%emt 0:01:43]} Rg1 {[%emt 0:00:33]} 31. Rd3 {[%emt 0:01:55]}
Re1+ {[%emt 0:00:04]} 32. Kxe1 {[%emt 0:00:22]} Qxd3 {[%emt 0:00:02]} 33. Bb2 {
[%emt 0:00:16]} Qc2 {[%emt 0:00:16]} 34. Ba3 {[%emt 0:00:01]} Qxa2 {[%emt 0:00:
16]} 35. Bc1 {[%emt 0:00:01]} Qc2 {[%emt 0:00:07]} 36. Ba3 {[%emt 0:00:05]} g5
{[%emt 0:00:44]} 37. Qe3 {[%emt 0:00:05]} gxh4 {[%emt 0:00:22]} 38. Qxh6 {
[%emt 0:00:01]} hxg3 {[%emt 0:00:03]} 0-1

[Event "European Rapid Championship 2021"]
[Site "Katowice"]
[Date "2021.12.19"]
[Round "11.24"]
[White "Stanisz, Patryk"]
[Black "Gretarsson, Helgi Ass"]
[Result "0-1"]
[ECO "A40"]
[WhiteElo "2125"]
[BlackElo "2476"]
[Annotator "ChessBase"]
[PlyCount "94"]
[EventDate "2021.12.18"]
[EventType "swiss"]
[EventCountry "POL"]
[SourceTitle "playchess.com"]
[Source "ChessBase"]
[SourceQuality "1"]
[TimeControl "900+10"]

1. d4 {[%emt 0:00:01]} g6 {[%emt 0:00:01]} 2. c4 {[%emt 0:00:05]} Bg7 {[%emt 0:
00:01]} 3. Nc3 {[%emt 0:00:04]} c5 {[%emt 0:00:02]} 4. Nf3 {[%emt 0:00:02]}
cxd4 {[%emt 0:00:02]} 5. Nxd4 {[%emt 0:00:01]} Nc6 {[%emt 0:00:01]} 6. Nxc6 {
[%emt 0:01:07]} bxc6 {[%emt 0:00:01]} 7. g3 {[%emt 0:00:22]} Qb6 {[%emt 0:00:
23]} 8. Bg2 {[%emt 0:00:34]} Qb4 {[%emt 0:00:32]} 9. Qb3 {[%emt 0:01:08]} Rb8 {
[%emt 0:00:02]} 10. O-O {[%emt 0:02:42]} Ba6 {[%emt 0:00:44]} 11. Qc2 {[%emt 0:
00:25]} Bxc4 {[%emt 0:06:16]} 12. Be3 {[%emt 0:03:23]} a5 {[%emt 0:01:35]} 13.
Rab1 {[%emt 0:00:12]} Nh6 {[%emt 0:01:02]} 14. Bh3 {[%emt 0:02:20]} d5 {
[%emt 0:03:27]} 15. b3 {[%emt 0:00:23]} Ba6 {[%emt 0:00:02]} 16. Nxd5 {[%emt 0:
00:09]} Qb7 {[%emt 0:01:07]} 17. Bf4 {[%emt 0:01:38]} cxd5 {[%emt 0:01:27]} 18.
Bxb8 {[%emt 0:00:04]} O-O {[%emt 0:00:01]} 19. Bf4 {[%emt 0:00:16]} e5 {
[%emt 0:00:02]} 20. Bd2 {[%emt 0:00:02]} Bxe2 {[%emt 0:00:03]} 21. Rfe1 {
[%emt 0:01:16]} Bf3 {[%emt 0:00:05]} 22. Bg2 {[%emt 0:00:09]} Bxg2 {[%emt 0:00:
03]} 23. Kxg2 {[%emt 0:00:01]} Nf5 {[%emt 0:00:03]} 24. Bxa5 {[%emt 0:00:47]}
Rc8 {[%emt 0:00:01]} 25. Qd2 {[%emt 0:00:26]} d4+ {[%emt 0:00:09]} 26. Kg1 {
[%emt 0:00:31]} e4 {[%emt 0:00:06]} 27. Rbc1 {[%emt 0:00:09]} Re8 {[%emt 0:00:
02]} 28. Rc7 {[%emt 0:00:25]} Qd5 {[%emt 0:00:01]} 29. Qb4 {[%emt 0:00:50]} h5
{[%emt 0:00:01]} 30. Qc4 {[%emt 0:00:03]} Qxa5 {[%emt 0:00:01]} 31. Qxf7+ Kh7 {
[%emt 0:00:01]} 32. Rec1 {[%emt 0:00:35]} Re5 {[%emt 0:00:33]} 33. R7c6 {
[%emt 0:00:02]} Ne7 {[%emt 0:00:22]} 34. Rc7 {[%emt 0:00:01]} Qa3 {[%emt 0:00:
36]} 35. R1c6 {[%emt 0:00:06]} e3 {[%emt 0:00:02]} 36. Rxe7 {[%emt 0:00:06]}
exf2+ {[%emt 0:00:12]} 37. Kf1 {[%emt 0:00:43]} Qxe7 {[%emt 0:00:24]} 38. Qxg6+
{[%emt 0:00:02]} Kh8 {[%emt 0:00:02]} 39. Rc8+ {[%emt 0:00:01]} Bf8 {[%emt 0:
00:00]} 40. Qh6+ {[%emt 0:00:12]} Kg8 {[%emt 0:00:01]} 41. Qg6+ {[%emt 0:00:24]
} Qg7 {[%emt 0:00:07]} 42. Qd6 {[%emt 0:00:11]} Rf5 {[%emt 0:01:02]} 43. Qe6+ {
[%emt 0:00:09]} Qf7 {[%emt 0:00:03]} 44. Qe4 {[%emt 0:00:08]} Qd7 {[%emt 0:00:
41]} 45. Rb8 {[%emt 0:00:10]} d3 {[%emt 0:00:15]} 46. Rb7 {[%emt 0:00:01]} Qd5
{[%emt 0:00:07]} 47. Qxd5+ {[%emt 0:00:23]} Rxd5 {[%emt 0:00:02]} 0-1

[Event "European Rapid Championship 2021"]
[Site "Katowice"]
[Date "2021.12.19"]
[Round "11.24"]
[White "Kalkowski, Igor"]
[Black "Wiewiora, Eneasz"]
[Result "0-1"]
[ECO "B00"]
[WhiteElo "1839"]
[BlackElo "2333"]
[Annotator "NA"]
[PlyCount "72"]
[EventDate "2021.12.18"]
[EventType "swiss"]
[EventCountry "POL"]
[SourceTitle "playchess.com"]
[Source "ChessBase"]
[SourceQuality "1"]
[TimeControl "900+10"]

1. e4 {[%emt 0:00:03]} d6 {[%emt 0:00:00]} 2. Nc3 {[%emt 0:00:02]} Nf6 {
[%emt 0:00:05]} 3. Bc4 {[%emt 0:00:02]} c6 {[%emt 0:00:14]} 4. d3 {[%emt 0:00:
09]} d5 {[%emt 0:00:06]} 5. Bb3 {[%emt 0:00:38]} dxe4 {[%emt 0:00:02]} 6. Nxe4
{[%emt 0:00:04]} Nxe4 {[%emt 0:00:07]} 7. dxe4 {[%emt 0:00:02]} Qxd1+ {[%emt 0:
00:02]} 8. Kxd1 {[%emt 0:00:01]} Nd7 {[%emt 0:00:04]} 9. Be3 {[%emt 0:00:05]}
e5 {[%emt 0:00:05]} 10. Nf3 {[%emt 0:00:15]} f6 {[%emt 0:00:07]} 11. c3 {
[%emt 0:00:22]} Bc5 {[%emt 0:00:06]} 12. Ke2 {[%emt 0:00:04]} Bxe3 {[%emt 0:00:
12]} 13. Kxe3 {[%emt 0:00:03]} Nc5 {[%emt 0:00:10]} 14. Bc2 {[%emt 0:00:51]}
Be6 {[%emt 0:00:10]} 15. b4 {[%emt 0:00:37]} Nd7 {[%emt 0:00:01]} 16. Bb3 {
[%emt 0:00:03]} Ke7 {[%emt 0:00:07]} 17. Nd2 {[%emt 0:00:06]} Nb6 {[%emt 0:00:
55]} 18. c4 {[%emt 0:01:00]} c5 {[%emt 0:00:44]} 19. b5 {[%emt 0:01:56]} Rhd8 {
[%emt 0:00:42]} 20. a4 {[%emt 0:00:11]} a5 {[%emt 0:04:05]} 21. bxa6 {[%emt 0:
00:02]} Rxa6 {[%emt 0:00:01]} 22. a5 {[%emt 0:00:06]} Rda8 {[%emt 0:00:21]} 23.
Rab1 {[%emt 0:00:43]} Rxa5 {[%emt 0:00:01]} 24. Bc2 {[%emt 0:00:01]} R8a6 {
[%emt 0:01:35]} 25. Bd3 {[%emt 0:00:04]} Kd6 {[%emt 0:01:14]} 26. Rb3 {[%emt 0:
01:00]} Ra3 {[%emt 0:00:13]} 27. Rhb1 {[%emt 0:00:11]} Rxb3 {[%emt 0:00:01]}
28. Rxb3 {[%emt 0:00:05]} Kc6 {[%emt 0:00:08]} 29. Be2 {[%emt 0:01:53]} Ra4 {
[%emt 0:00:13]} 30. f4 {[%emt 0:00:35]} exf4+ {[%emt 0:01:46]} 31. Kxf4 {
[%emt 0:00:02]} Nxc4 {[%emt 0:00:01]} 32. Nb1 {[%emt 0:00:08]} g5+ {[%emt 0:00:
55]} 33. Kg3 {[%emt 0:00:15]} Nd6 {[%emt 0:00:02]} 34. Re3 {[%emt 0:00:28]}
Nxe4+ {[%emt 0:00:47]} 35. Rxe4 {[%emt 0:00:12]} Rxe4 {[%emt 0:00:01]} 36. Bf3
{[%emt 0:00:05]} Bd5 {[%emt 0:00:09]} 0-1

[Event "European Rapid Championship 2021"]
[Site "Katowice"]
[Date "2021.12.19"]
[Round "11.25"]
[White "Wieczorek, Oskar"]
[Black "Woloch, Oskar"]
[Result "1-0"]
[ECO "C47"]
[WhiteElo "2367"]
[BlackElo "2036"]
[Annotator "NA"]
[PlyCount "107"]
[EventDate "2021.12.18"]
[EventType "swiss"]
[EventCountry "POL"]
[SourceTitle "playchess.com"]
[Source "ChessBase"]
[SourceQuality "1"]
[TimeControl "900+10"]

1. e4 {[%emt 0:00:01]} e5 {[%emt 0:00:01]} 2. Nf3 {[%emt 0:00:01]} Nc6 {
[%emt 0:00:01]} 3. Nc3 {[%emt 0:00:01]} Nf6 {[%emt 0:00:02]} 4. a3 {[%emt 0:00:
01]} d5 {[%emt 0:01:42]} 5. Bb5 {[%emt 0:00:02]} d4 {[%emt 0:00:55]} 6. Ne2 {
[%emt 0:00:02]} Bd7 {[%emt 0:00:26]} 7. Ng3 {[%emt 0:00:45]} Bd6 {[%emt 0:00:
34]} 8. O-O {[%emt 0:00:15]} h5 {[%emt 0:00:26]} 9. d3 {[%emt 0:02:16]} g6 {
[%emt 0:00:09]} 10. Bg5 {[%emt 0:00:17]} Bg4 {[%emt 0:02:05]} 11. h3 {[%emt 0:
00:35]} Bxf3 {[%emt 0:00:11]} 12. Qxf3 {[%emt 0:00:01]} Be7 {[%emt 0:00:01]}
13. c3 {[%emt 0:02:37]} dxc3 {[%emt 0:01:30]} 14. bxc3 {[%emt 0:00:03]} Kf8 {
[%emt 0:00:01]} 15. Rfd1 {[%emt 0:02:17]} h4 {[%emt 0:00:06]} 16. Ne2 {[%emt 0:
01:51]} Rh5 {[%emt 0:00:01]} 17. Be3 {[%emt 0:00:44]} Qe8 {[%emt 0:00:33]} 18.
Bc4 {[%emt 0:00:26]} Kg7 {[%emt 0:00:19]} 19. d4 {[%emt 0:00:08]} Bd6 {[%emt 0:
00:01]} 20. Rab1 {[%emt 0:00:20]} exd4 {[%emt 0:00:30]} 21. cxd4 {[%emt 0:00:
27]} Qxe4 {[%emt 0:00:02]} 22. Qxe4 {[%emt 0:00:35]} Nxe4 {[%emt 0:00:01]} 23.
Bd3 {[%emt 0:00:00]} Nf6 {[%emt 0:00:47]} 24. Rxb7 {[%emt 0:00:04]} Ra5 {
[%emt 0:00:32]} 25. Nc3 {[%emt 0:01:41]} Nd8 {[%emt 0:01:06]} 26. Rbb1 {
[%emt 0:00:15]} Rxa3 {[%emt 0:01:25]} 27. Nb5 {[%emt 0:00:01]} Ra4 {[%emt 0:00:
41]} 28. Bc2 {[%emt 0:00:40]} Rc4 {[%emt 0:00:27]} 29. Bd3 {[%emt 0:00:33]} Ra4
{[%emt 0:00:11]} 30. d5 {[%emt 0:01:30]} Nxd5 {[%emt 0:00:37]} 31. Nxd6 {
[%emt 0:00:56]} cxd6 {[%emt 0:00:11]} 32. Bd2 {[%emt 0:00:01]} Rd4 {[%emt 0:00:
36]} 33. Ba6 {[%emt 0:00:22]} Ne6 {[%emt 0:00:36]} 34. Ba5 {[%emt 0:00:22]} Rb8
{[%emt 0:00:27]} 35. Ra1 {[%emt 0:00:18]} Rb3 {[%emt 0:00:39]} 36. Rxd4 {
[%emt 0:00:14]} Nxd4 {[%emt 0:00:07]} 37. Bc4 {[%emt 0:00:03]} Nf6 {[%emt 0:01:
42]} 38. Bxb3 {[%emt 0:00:12]} Nxb3 {[%emt 0:00:02]} 39. Ra3 {[%emt 0:00:00]}
Nc5 {[%emt 0:00:38]} 40. Bc3 {[%emt 0:00:04]} a6 {[%emt 0:00:03]} 41. Bd4 {
[%emt 0:00:10]} Ne6 {[%emt 0:00:19]} 42. Ba1 {[%emt 0:00:13]} Nc5 {[%emt 0:00:
29]} 43. Rf3 {[%emt 0:00:25]} Nce4 {[%emt 0:00:01]} 44. Rf4 {[%emt 0:00:24]} d5
{[%emt 0:00:02]} 45. Rxh4 {[%emt 0:00:01]} g5 {[%emt 0:00:18]} 46. Bxf6+ {
[%emt 0:00:03]} Kxf6 {[%emt 0:00:07]} 47. Rh6+ {[%emt 0:00:01]} Ke5 {[%emt 0:
00:01]} 48. Rxa6 {[%emt 0:00:02]} Kd4 {[%emt 0:00:06]} 49. g3 {[%emt 0:00:19]}
Kd3 {[%emt 0:00:30]} 50. h4 {[%emt 0:00:07]} gxh4 {[%emt 0:00:08]} 51. gxh4 {
[%emt 0:00:01]} Ke2 {[%emt 0:00:01]} 52. h5 {[%emt 0:00:23]} d4 {[%emt 0:00:02]
} 53. Ra4 {[%emt 0:00:26]} Ng5 {[%emt 0:00:01]} 54. Rxd4 {[%emt 0:00:20]} 1-0

[Event "European Rapid Championship 2021"]
[Site "Katowice"]
[Date "2021.12.19"]
[Round "11.25"]
[White "Jazdanovs, Aleksandrs"]
[Black "Reimanis, Ritvars"]
[Result "0-1"]
[ECO "C67"]
[WhiteElo "2089"]
[BlackElo "2397"]
[Annotator "NA"]
[PlyCount "122"]
[EventDate "2021.12.18"]
[EventType "swiss"]
[EventCountry "POL"]
[SourceTitle "playchess.com"]
[Source "ChessBase"]
[SourceQuality "1"]
[TimeControl "900+10"]

1. e4 {[%emt 0:00:05]} e5 {[%emt 0:00:09]} 2. Nf3 {[%emt 0:00:02]} Nc6 {
[%emt 0:00:01]} 3. Bb5 {[%emt 0:00:01]} Nf6 {[%emt 0:00:01]} 4. O-O {[%emt 0:
00:25]} Nxe4 {[%emt 0:00:02]} 5. d4 {[%emt 0:00:03]} Nd6 {[%emt 0:00:01]} 6.
dxe5 {[%emt 0:00:02]} Nxb5 {[%emt 0:00:02]} 7. a4 {[%emt 0:00:02]} Nbd4 {
[%emt 0:00:34]} 8. Nxd4 {[%emt 0:00:02]} Nxd4 {[%emt 0:00:44]} 9. Qxd4 {
[%emt 0:00:02]} d5 {[%emt 0:00:02]} 10. exd6 {[%emt 0:00:29]} Qxd6 {[%emt 0:00:
02]} 11. Qe4+ {[%emt 0:01:54]} Qe6 {[%emt 0:00:58]} 12. Nc3 {[%emt 0:01:20]}
Qxe4 {[%emt 0:00:14]} 13. Nxe4 {[%emt 0:00:01]} Bf5 {[%emt 0:00:09]} 14. Re1 {
[%emt 0:00:21]} O-O-O {[%emt 0:00:12]} 15. Bf4 {[%emt 0:00:27]} Be7 {[%emt 0:
04:57]} 16. c3 {[%emt 0:00:29]} Rhe8 {[%emt 0:00:19]} 17. Ng3 {[%emt 0:02:07]}
Be6 {[%emt 0:00:30]} 18. Nh5 {[%emt 0:00:24]} Bf8 {[%emt 0:00:26]} 19. Be5 {
[%emt 0:00:06]} f6 {[%emt 0:00:15]} 20. Bd4 {[%emt 0:00:02]} a5 {[%emt 0:00:35]
} 21. Nf4 {[%emt 0:01:15]} Bb3 {[%emt 0:00:10]} 22. f3 {[%emt 0:03:56]} b6 {
[%emt 0:01:00]} 23. Rxe8 {[%emt 0:00:06]} Rxe8 {[%emt 0:00:02]} 24. Kf2 {
[%emt 0:00:02]} Kd7 {[%emt 0:02:48]} 25. Ne2 {[%emt 0:00:13]} Bd6 {[%emt 0:00:
29]} 26. Nc1 {[%emt 0:00:29]} Bc2 {[%emt 0:00:14]} 27. g3 {[%emt 0:01:06]} h5 {
[%emt 0:00:35]} 28. b3 {[%emt 0:00:09]} h4 {[%emt 0:00:15]} 29. Ra2 {[%emt 0:
00:01]} hxg3+ {[%emt 0:00:35]} 30. hxg3 {[%emt 0:00:04]} Bb1 {[%emt 0:00:13]}
31. Rb2 {[%emt 0:00:13]} Bg6 {[%emt 0:00:07]} 32. Re2 {[%emt 0:02:43]} Rxe2+ {
[%emt 0:00:41]} 33. Nxe2 {[%emt 0:00:01]} Bc2 {[%emt 0:00:07]} 34. b4 {[%emt 0:
01:33]} axb4 {[%emt 0:00:15]} 35. cxb4 {[%emt 0:00:01]} Bxb4 {[%emt 0:00:03]}
36. Nf4 {[%emt 0:00:01]} Bxa4 {[%emt 0:00:33]} 37. Nh5 {[%emt 0:00:02]} Bf8 {
[%emt 0:00:08]} 38. g4 {[%emt 0:00:30]} c5 {[%emt 0:01:01]} 39. Ba1 {[%emt 0:
00:14]} Bb3 {[%emt 0:00:22]} 40. f4 {[%emt 0:00:34]} Bf7 {[%emt 0:00:15]} 41.
Ng3 {[%emt 0:00:02]} Bd6 {[%emt 0:00:20]} 42. Ke3 {[%emt 0:00:05]} g5 {[%emt 0:
00:19]} 43. Ne2 {[%emt 0:00:23]} gxf4+ {[%emt 0:00:23]} 44. Nxf4 {[%emt 0:00:
01]} Bxf4+ {[%emt 0:00:28]} 45. Kxf4 {[%emt 0:00:03]} Ke6 {[%emt 0:00:01]} 46.
g5 {[%emt 0:00:25]} fxg5+ {[%emt 0:00:17]} 47. Kxg5 {[%emt 0:00:01]} Kd5 {
[%emt 0:00:08]} 48. Kf4 {[%emt 0:00:11]} b5 {[%emt 0:00:19]} 49. Ke3 {[%emt 0:
00:01]} b4 {[%emt 0:00:06]} 50. Kd2 {[%emt 0:00:10]} Kc4 {[%emt 0:00:03]} 51.
Kc2 {[%emt 0:00:06]} Bg6+ {[%emt 0:00:06]} 52. Kb2 {[%emt 0:00:03]} Kd3 {
[%emt 0:00:06]} 53. Kb3 {[%emt 0:00:03]} Bf7+ {[%emt 0:00:04]} 54. Ka4 {
[%emt 0:00:13]} Kc4 {[%emt 0:00:30]} 55. Bf6 {[%emt 0:00:26]} Be8+ {[%emt 0:00:
50]} 56. Ka5 {[%emt 0:00:02]} b3 {[%emt 0:00:10]} 57. Bb2 {[%emt 0:00:22]} Bd7
{[%emt 0:00:10]} 58. Ba1 {[%emt 0:00:25]} Be6 {[%emt 0:00:10]} 59. Ka4 {
[%emt 0:00:03]} Kd3 {[%emt 0:00:03]} 60. Ka3 {[%emt 0:00:05]} Kc2 {[%emt 0:00:
04]} 61. Be5 {[%emt 0:00:14]} c4 {[%emt 0:00:01]} 0-1

[Event "European Rapid Championship 2021"]
[Site "Katowice"]
[Date "2021.12.19"]
[Round "11.26"]
[White "Baum, Jonasz"]
[Black "Vidruska, Renate"]
[Result "1-0"]
[ECO "C28"]
[WhiteElo "2343"]
[BlackElo "1993"]
[Annotator "NA"]
[PlyCount "45"]
[EventDate "2021.12.18"]
[EventType "swiss"]
[EventCountry "POL"]
[SourceTitle "playchess.com"]
[Source "ChessBase"]
[SourceQuality "1"]
[TimeControl "900+10"]

1. e4 {[%emt 0:00:02]} e5 {[%emt 0:00:50]} 2. Nc3 {[%emt 0:00:01]} Nf6 {
[%emt 0:00:02]} 3. Bc4 {[%emt 0:00:04]} Nc6 {[%emt 0:00:04]} 4. d3 {[%emt 0:00:
04]} Bc5 {[%emt 0:00:20]} 5. Bg5 {[%emt 0:00:15]} h6 {[%emt 0:00:07]} 6. Bh4 {
[%emt 0:00:03]} Na5 {[%emt 0:01:29]} 7. Nf3 {[%emt 0:00:22]} g5 {[%emt 0:00:26]
} 8. Bg3 {[%emt 0:00:19]} Nxc4 {[%emt 0:00:04]} 9. dxc4 {[%emt 0:00:05]} d6 {
[%emt 0:00:01]} 10. Qd3 {[%emt 0:03:13]} Be6 {[%emt 0:01:05]} 11. O-O-O {
[%emt 0:00:42]} Nh5 {[%emt 0:01:31]} 12. Nxe5 {[%emt 0:01:34]} Qf6 {[%emt 0:05:
02]} 13. Nf3 {[%emt 0:04:41]} Nf4 {[%emt 0:00:02]} 14. Bxf4 {[%emt 0:00:29]}
Qxf4+ {[%emt 0:00:04]} 15. Kb1 {[%emt 0:00:04]} Bxf2 {[%emt 0:01:01]} 16. Rhf1
{[%emt 0:01:08]} Qe3 {[%emt 0:01:17]} 17. Nd5 {[%emt 0:00:49]} Bxd5 {[%emt 0:
00:12]} 18. Qxd5 {[%emt 0:00:35]} Qb6 {[%emt 0:02:07]} 19. Qf5 {[%emt 0:00:24]}
Be3 {[%emt 0:01:39]} 20. Ne5 {[%emt 0:00:13]} O-O {[%emt 0:00:01]} 21. Nd7 {
[%emt 0:00:05]} Qc6 {[%emt 0:00:16]} 22. Nf6+ {[%emt 0:00:01]} Kg7 {[%emt 0:00:
04]} 23. Qh7# {[%emt 0:00:01]} 1-0